bitfinex-derivatives/quotes_BTCF0:USTF0_20210705
["timestamp","ask_amount","ask_price","bid_price","bid_amount"]
[1625466692120,0.67636852,34237.0,34232.0,0.68705113]
[1625466692218,1.01277852,34237.0,34232.0,0.68705113]
[1625466692619,0.48115088,34233.0,34232.0,0.68705113]
[1625466693422,0.48115088,34233.0,34231.0,0.68643293]
[1625466693721,0.48115088,34233.0,34231.0,0.74543293]
[1625466693923,0.54015088,34233.0,34231.0,0.74543293]
[1625466694023,0.54015088,34233.0,34231.0,0.059]
[1625466697477,0.48115088,34233.0,34231.0,0.059]
[1625466698531,0.54015088,34233.0,34231.0,0.059]
[1625466702537,0.54015088,34233.0,34231.0,0.74406586]
[1625466703087,0.24057544,34234.0,34231.0,0.74406586]
[1625466703191,0.004,34236.0,34232.0,0.68506261]
[1625466703331,0.004,34236.0,34232.0,0.80306261]
[1625466703841,0.004,34236.0,34234.0,0.68506283]
[1625466703940,0.004,34236.0,34234.0,0.89415283]
[1625466704041,0.67353978,34246.0,34234.0,1.01215283]
[1625466704392,1.0102255,34247.0,34236.0,1.19862102]
[1625466704493,0.67457087,34251.0,34239.0,0.6849263]
[1625466704593,0.67457087,34251.0,34250.0,0.48115088]
[1625466704692,0.67457087,34251.0,34250.0,0.73057088]
[1625466704792,0.67457087,34251.0,34250.0,0.78957088]
[1625466704894,0.91568713,34252.0,34250.0,0.78957088]
[1625466705545,0.67489131,34251.0,34250.0,0.78957088]
[1625466706446,0.91558465,34252.0,34250.0,0.78957088]
[1625466707296,0.91558465,34252.0,34250.0,0.73057088]
[1625466707397,0.91558465,34252.0,34250.0,0.48115088]
[1625466707496,3.8166,34251.0,34250.0,0.48115088]
[1625466707951,5.50356152,34251.0,34250.0,0.48115088]
[1625466708351,1.68696152,34251.0,34250.0,0.48115088]
[1625466709002,0.67481834,34251.0,34250.0,0.48115088]
[1625466709456,0.91576921,34252.0,34250.0,0.48115088]
[1625466709558,0.91576921,34252.0,34245.0,0.20951]
[1625466709657,0.91576921,34252.0,34245.0,0.26851]
[1625466709861,0.67515451,34251.0,34245.0,0.26851]
[1625466710057,4.5298,34249.0,34245.0,0.26851]
[1625466710708,4.5298,34249.0,34248.0,0.24057544]
[1625466710809,4.5298,34249.0,34248.0,0.29957544]
[1625466711010,0.67504832,34251.0,34248.0,0.29957544]
[1625466711258,0.67500992,34250.0,34248.0,0.29957544]
[1625466712467,0.67523488,34251.0,34248.0,0.29957544]
[1625466712667,0.24057544,34250.0,34248.0,0.29957544]
[1625466712968,1.10864722,34253.0,34248.0,0.29957544]
[1625466713085,1.10864722,34253.0,34248.0,0.69016544]
[1625466713292,1.35165219,34259.0,34248.0,0.69016544]
[1625466713400,1.35165219,34259.0,34249.0,0.1]
[1625466713469,1.35165219,34259.0,34249.0,0.159]
[1625466713572,1.35165219,34259.0,34249.0,0.1634229]
[1625466713774,1.35165219,34259.0,34249.0,0.159]
[1625466713870,1.689523,34267.0,34249.0,0.159]
[1625466713871,1.35387538,34264.0,34249.0,0.159]
[1625466713969,1.35387538,34264.0,34249.0,0.059]
[1625466714069,1.35387538,34264.0,34249.0,0.118]
[1625466714377,1.98520193,34273.0,34249.0,0.118]
[1625466714378,1.35408861,34265.0,34249.0,0.118]
[1625466714573,1.35408861,34265.0,34263.0,0.1]
[1625466714673,1.41308861,34265.0,34264.0,0.48115088]
[1625466715124,1.42749023,34265.0,34264.0,0.48115088]
[1625466715226,1.48649023,34265.0,34264.0,0.48115088]
[1625466715728,3.01192526,34265.0,34264.0,0.48115088]
[1625466715831,7.46672526,34265.0,34264.0,0.48115088]
[1625466717682,7.46672526,34265.0,34264.0,0.13522288]
[1625466717881,9.16063356,34265.0,34264.0,0.13522288]
[1625466718282,7.46672526,34265.0,34264.0,0.13522288]
[1625466718685,7.7073007,34265.0,34264.0,0.13522288]
[1625466720087,3.2525007,34265.0,34264.0,0.13522288]
[1625466720188,2.14924209,34265.0,34264.0,0.13522288]
[1625466720288,2.23784209,34265.0,34264.0,0.13522288]
[1625466720689,3.59373006,34265.0,34264.0,0.13522288]
[1625466720889,3.50513006,34265.0,34264.0,0.13522288]
[1625466730968,5.21093908,34265.0,34264.0,0.13522288]
[1625466731065,5.24553017,34265.0,34264.0,0.13522288]
[1625466732770,5.24553017,34265.0,34261.0,0.002]
[1625466733171,4.09059921,34262.0,34261.0,0.002]
[1625466733271,4.29519921,34262.0,34261.0,0.002]
[1625466733371,4.20859921,34262.0,34261.0,0.002]
[1625466733521,4.22301507,34262.0,34261.0,0.002]
[1625466733621,4.16401507,34262.0,34261.0,0.002]
[1625466734323,4.25261507,34262.0,34261.0,0.002]
[1625466734623,4.31161507,34262.0,34261.0,0.002]
[1625466734825,4.55219051,34262.0,34261.0,0.002]
[1625466735023,4.49319051,34262.0,34261.0,0.002]
[1625466735275,4.55219051,34262.0,34261.0,0.002]
[1625466735675,4.40459051,34262.0,34261.0,0.002]
[1625466736128,4.46359051,34262.0,34261.0,0.002]
[1625466736226,4.46359051,34262.0,34260.0,0.24057544]
[1625466736727,0.01441558,34261.0,34260.0,0.24057544]
[1625466736827,0.07341558,34261.0,34260.0,0.24057544]
[1625466736931,4.1519147,34261.0,34260.0,0.24057544]
[1625466740389,4.2393147,34261.0,34260.0,0.24057544]
[1625466740787,4.27390674,34261.0,34260.0,0.24057544]
[1625466741400,4.33290674,34261.0,34256.0,0.004]
[1625466741492,4.33290674,34261.0,34254.0,0.006]
[1625466741593,6.02901018,34261.0,34250.0,0.25057544]
[1625466741790,0.04901154,34260.0,34250.0,0.25057544]
[1625466741892,0.10801154,34260.0,34250.0,0.25057544]
[1625466741990,0.16701154,34260.0,34250.0,0.25057544]
[1625466742092,2.54368282,34251.0,34250.0,0.25057544]
[1625466742190,7.91043282,34251.0,34250.0,0.25057544]
[1625466742290,7.90843282,34251.0,34250.0,0.24057544]
[1625466742793,7.92284952,34251.0,34250.0,0.24499648]
[1625466742891,7.92284952,34251.0,34250.0,0.48557192]
[1625466742992,7.92284952,34251.0,34250.0,0.48115088]
[1625466743193,8.94039652,34251.0,34250.0,0.58115088]
[1625466744344,8.94039652,34251.0,34250.0,0.58557198]
[1625466744897,8.94039652,34251.0,34250.0,0.58115088]
[1625466745746,8.94039652,34251.0,34250.0,0.34057544]
[1625466746998,9.4215474,34251.0,34250.0,0.34057544]
[1625466748153,4.3669474,34251.0,34250.0,0.34057544]
[1625466749206,3.01232787,34251.0,34250.0,0.34057544]
[1625466749306,2.45960243,34251.0,34250.0,0.34057544]
[1625466749875,2.79934243,34251.0,34250.0,0.34057544]
[1625466752961,3.03991787,34251.0,34250.0,0.34057544]
[1625466753562,4.56082019,34251.0,34250.0,0.34057544]
[1625466757474,5.91635197,34251.0,34250.0,0.34057544]
[1625466760179,6.03435197,34251.0,34250.0,0.34057544]
[1625466760279,6.03435197,34251.0,34250.0,0.1]
[1625466760493,6.03435197,34251.0,34250.0,0.0285]
[1625466760679,6.03435197,34251.0,34249.0,0.9625]
[1625466761082,5.38260589,34250.0,34249.0,0.9625]
[1625466761281,5.44160589,34250.0,34249.0,0.9625]
[1625466761785,5.52920589,34250.0,34249.0,0.9625]
[1625466763943,5.52920589,34250.0,34245.0,0.002]
[1625466764040,5.52920589,34250.0,34244.0,0.17057544]
[1625466764242,4.4886,34245.0,34244.0,0.17057544]
[1625466764343,4.5476,34245.0,34244.0,0.16257544]
[1625466764444,4.6066,34245.0,34244.0,0.11257544]
[1625466764544,4.6210175,34245.0,34244.0,0.11257544]
[1625466764642,9.68087706,34245.0,34244.0,0.11257544]
[1625466765045,10.16202794,34245.0,34244.0,0.11257544]
[1625466765447,5.67342794,34245.0,34244.0,0.11257544]
[1625466766094,9.74852794,34245.0,34244.0,0.11257544]
[1625466766295,9.74852794,34245.0,34244.0,0.11457544]
[1625466767047,9.83732794,34245.0,34244.0,0.11457544]
[1625466768851,9.83732794,34245.0,34244.0,0.002]
[1625466770052,9.83732794,34245.0,34242.0,0.004]
[1625466770453,0.01437578,34244.0,34242.0,0.004]
[1625466770556,5.04886566,34243.0,34242.0,0.004]
[1625466770756,5.10786566,34243.0,34242.0,0.004]
[1625466771055,5.10786566,34243.0,34237.0,0.08614667]
[1625466771056,5.18124676,34243.0,34237.0,0.08614667]
[1625466771157,5.4218222,34243.0,34237.0,0.08614667]
[1625466771557,0.01438152,34242.0,34237.0,0.08614667]
[1625466771657,0.13238152,34242.0,34237.0,0.08614667]
[1625466771758,0.13238152,34242.0,34236.0,0.32669326]
[1625466771759,2.18645168,34238.0,34236.0,0.32669326]
[1625466772262,2.18652679,34237.0,34236.0,0.24057544]
[1625466772863,2.27292679,34237.0,34236.0,0.24057544]
[1625466773065,2.94587904,34237.0,34236.0,0.24057544]
[1625466773163,3.41122448,34237.0,34236.0,0.24057544]
[1625466773766,3.32482448,34237.0,34236.0,0.24057544]
[1625466777480,2.14747684,34237.0,34236.0,0.29957544]
[1625466777579,1.6821314,34237.0,34236.0,0.29957544]
[1625466777680,1.6821314,34237.0,34236.0,0.35857544]
[1625466777779,1.6821314,34237.0,34236.0,0.60423544]
[1625466777980,0.67281436,34238.0,34236.0,1.23360171]
[1625466778079,0.67281436,34238.0,34236.0,1.29260171]
[1625466778333,0.67281436,34238.0,34236.0,1.23360171]
[1625466778430,0.67281436,34238.0,34236.0,1.29260171]
[1625466778731,0.67281436,34238.0,34236.0,1.23360171]
[1625466778834,0.67281436,34238.0,34236.0,1.29260171]
[1625466779032,0.67281436,34238.0,34237.0,0.0860454]
[1625466779131,0.67281436,34238.0,34237.0,0.44462084]
[1625466779231,4.90371436,34238.0,34237.0,0.44462084]
[1625466779431,4.90371436,34238.0,34237.0,0.35857544]
[1625466779432,5.40816005,34238.0,34237.0,0.35857544]
[1625466780532,5.40816005,34238.0,34237.0,0.29957544]
[1625466780631,5.40816005,34238.0,34237.0,0.24057544]
[1625466780737,6.47559982,34238.0,34237.0,0.32661605]
[1625466781134,6.71617526,34238.0,34237.0,0.32661605]
[1625466781236,7.89186125,34238.0,34237.0,0.24057544]
[1625466783088,7.95086125,34238.0,34237.0,0.24057544]
[1625466783291,7.96524341,34238.0,34237.0,0.24057544]
[1625466783939,9.30636892,34238.0,34237.0,0.24057544]
[1625466784690,9.52196892,34238.0,34237.0,0.24057544]
[1625466785442,8.18084341,34238.0,34237.0,0.24057544]
[1625466786044,9.52041317,34238.0,34237.0,0.24057544]
[1625466786997,8.18084341,34238.0,34237.0,0.24057544]
[1625466787550,9.52032036,34238.0,34237.0,0.24057544]
[1625466788700,5.28942036,34238.0,34237.0,0.24057544]
[1625466789761,5.07382036,34238.0,34237.0,0.24057544]
[1625466790055,5.01482036,34238.0,34237.0,0.24057544]
[1625466790408,2.49965742,34238.0,34237.0,0.24057544]
[1625466792162,3.67221957,34238.0,34237.0,0.24057544]
[1625466792661,2.49965742,34238.0,34237.0,0.24057544]
[1625466792764,2.25908198,34238.0,34237.0,0.24057544]
[1625466792962,2.25908198,34238.0,34237.0,0.24501014]
[1625466793415,2.25908198,34238.0,34237.0,0.33104822]
[1625466793516,1.25064221,34238.0,34237.0,0.33104822]
[1625466793864,2.25615136,34238.0,34237.0,0.24501014]
[1625466794064,1.75170567,34238.0,34237.0,0.24501014]
[1625466794265,2.25444441,34238.0,34237.0,0.24501014]
[1625466795169,2.49501985,34238.0,34237.0,0.24501014]
[1625466797174,2.49501985,34238.0,34237.0,0.33109861]
[1625466798725,2.49501985,34238.0,34237.0,0.24501014]
[1625466798726,3.66799675,34238.0,34237.0,0.24501014]
[1625466800329,3.66799675,34238.0,34237.0,0.33113097]
[1625466801533,3.94956675,34238.0,34237.0,0.33113097]
[1625466801643,4.00856675,34238.0,34237.0,0.33113097]
[1625466801835,4.00856675,34238.0,34237.0,0.32669627]
[1625466801934,5.34934559,34238.0,34237.0,0.24057544]
[1625466802534,6.85605725,34238.0,34237.0,0.24057544]
[1625466802834,5.34934559,34238.0,34237.0,0.24057544]
[1625466805343,6.8543928,34238.0,34237.0,0.24057544]
[1625466806996,5.34934559,34238.0,34237.0,0.24057544]
[1625466813710,6.8554299,34238.0,34237.0,0.24057544]
[1625466814962,6.8554299,34238.0,34236.0,0.24057544]
[1625466815065,0.088,34237.0,34236.0,0.24057544]
[1625466815160,0.206,34237.0,34236.0,0.24057544]
[1625466815311,0.44657544,34237.0,34236.0,0.24057544]
[1625466815410,0.46096536,34237.0,34236.0,0.24057544]
[1625466815661,6.64912829,34237.0,34236.0,0.24057544]
[1625466815760,6.64912829,34237.0,34231.0,0.002]
[1625466816064,4.68353455,34232.0,34231.0,0.002]
[1625466816163,4.74253455,34232.0,34231.0,0.002]
[1625466816463,4.75692449,34232.0,34231.0,0.0064387]
[1625466816663,4.75692449,34232.0,34231.0,0.002]
[1625466817415,6.74251216,34232.0,34231.0,0.002]
[1625466817868,5.23807537,34232.0,34231.0,0.002]
[1625466817964,5.32477537,34232.0,34231.0,0.002]
[1625466818365,6.82923332,34232.0,34231.0,0.002]
[1625466818668,6.74253332,34232.0,34231.0,0.002]
[1625466818966,5.23807537,34232.0,34231.0,0.002]
[1625466819420,6.7423324,34232.0,34231.0,0.002]
[1625466825238,5.23807537,34232.0,34231.0,0.002]
[1625466825433,5.23807537,34232.0,34231.0,0.24257544]
[1625466825835,5.22368543,34232.0,34231.0,0.24257544]
[1625466826087,5.23807545,34232.0,34231.0,0.24257544]
[1625466826335,5.23807545,34232.0,34231.0,0.24057544]
[1625466827941,4.75692457,34232.0,34231.0,0.24057544]
[1625466828041,4.69792457,34232.0,34231.0,0.29957544]
[1625466828244,4.68353455,34232.0,34231.0,0.35857544]
[1625466828341,1.28283455,34232.0,34231.0,1.56668064]
[1625466828442,1.28283455,34232.0,34231.0,5.99428064]
[1625466828540,1.28283455,34232.0,34231.0,5.93971887]
[1625466828841,0.27923195,34232.0,34231.0,8.35583749]
[1625466829193,0.27923195,34232.0,34231.0,3.92823749]
[1625466829343,0.61438197,34232.0,34231.0,3.92823749]
[1625466829442,0.61438197,34232.0,34231.0,4.16881293]
[1625466829793,0.51548197,34232.0,34231.0,4.16881293]
[1625466829894,1.00911508,34234.0,34231.0,4.16881293]
[1625466830095,1.00911508,34234.0,34231.0,4.22781293]
[1625466830195,0.50881508,34234.0,34231.0,4.22781293]
[1625466830294,0.00851508,34234.0,34231.0,4.22781293]
[1625466830396,0.00851508,34234.0,34232.0,0.00443466]
[1625466830495,0.00851508,34234.0,34232.0,0.12243466]
[1625466830697,0.006,34236.0,34232.0,0.12243466]
[1625466830698,0.08399906,34235.0,34233.0,2.41587992]
[1625466830797,0.08399906,34235.0,34233.0,2.47487992]
[1625466830897,0.08399906,34235.0,34233.0,2.53831447]
[1625466831147,0.08399906,34235.0,34234.0,0.00443545]
[1625466831248,0.006,34236.0,34234.0,3.30036144]
[1625466831447,0.006,34236.0,34235.0,0.48115088]
[1625466831648,0.006,34236.0,34235.0,0.59915088]
[1625466831748,0.006,34236.0,34235.0,1.98381713]
[1625466832250,0.008,34239.0,34235.0,1.97981713]
[1625466832552,0.008,34239.0,34236.0,0.00443541]
[1625466832650,0.008,34239.0,34236.0,0.12243541]
[1625466832900,0.008,34239.0,34238.0,1.38017706]
[1625466832999,0.008,34239.0,34238.0,1.49817706]
[1625466833455,0.008,34239.0,34238.0,1.7387525]
[1625466833553,0.008,34239.0,34238.0,1.74318753]
[1625466834803,0.0001,34241.0,34238.0,1.74318753]
[1625466835006,0.0001,34241.0,34238.0,3.29521118]
[1625466835108,0.0001,34241.0,34239.0,0.00443481]
[1625466835209,0.0001,34241.0,34239.0,0.06343481]
[1625466835307,0.006,34240.0,34239.0,0.11843481]
[1625466835507,1.34332002,34248.0,34239.0,0.35901025]
[1625466835905,1.34332002,34248.0,34240.0,0.0044299]
[1625466836007,1.80509167,34252.0,34243.0,1.37896441]
[1625466836008,1.34476557,34251.0,34243.0,1.37896441]
[1625466836120,1.34476557,34251.0,34243.0,1.81876441]
[1625466836306,1.63816891,34252.0,34244.0,1.37894013]
[1625466836405,1.63816891,34252.0,34244.0,1.43794013]
[1625466836505,1.63816891,34252.0,34244.0,1.49694013]
[1625466837310,1.63816891,34252.0,34245.0,1.37892236]
[1625466837406,1.63816891,34252.0,34245.0,1.49692236]
[1625466837508,1.63816891,34252.0,34251.0,0.61788318]
[1625466837606,1.63816891,34252.0,34251.0,0.89929318]
[1625466837958,0.2929,34252.0,34251.0,0.89929318]
[1625466838910,1.63625352,34252.0,34251.0,0.89929318]
[1625466839511,0.2929,34252.0,34251.0,0.89929318]
[1625466842216,0.2929,34252.0,34251.0,0.84029318]
[1625466842818,1.6354769,34252.0,34251.0,0.61788318]
[1625466842919,1.6354769,34252.0,34251.0,0.1367323]
[1625466843018,2.0034469,34252.0,34246.0,0.17217564]
[1625466843118,2.0034469,34252.0,34246.0,0.23117564]
[1625466843219,2.0034469,34252.0,34246.0,0.17217564]
[1625466843423,1.34171524,34248.0,34244.0,0.17217309]
[1625466843521,1.34171524,34248.0,34246.0,0.24057544]
[1625466844028,1.34087064,34247.0,34246.0,0.24057544]
[1625466844423,1.39987064,34247.0,34246.0,0.24057544]
[1625466845287,1.45887064,34247.0,34246.0,0.24057544]
[1625466845627,1.64044608,34247.0,34246.0,0.24057544]
[1625466845726,1.69944608,34247.0,34246.0,0.24057544]
[1625466845828,1.64044608,34247.0,34246.0,0.24057544]
[1625466845927,1.69944608,34247.0,34246.0,0.24057544]
[1625466846028,1.64044608,34247.0,34246.0,0.24057544]
[1625466846132,3.15079918,34247.0,34246.0,0.24057544]
[1625466846580,7.21319918,34247.0,34246.0,0.24057544]
[1625466846730,7.15419918,34247.0,34246.0,0.24057544]
[1625466847281,7.14819918,34247.0,34246.0,0.24657544]
[1625466847384,5.63784608,34247.0,34246.0,0.24657544]
[1625466847531,5.69684608,34247.0,34246.0,0.24657544]
[1625466847984,5.63784608,34247.0,34246.0,0.24657544]
[1625466848083,1.57544608,34247.0,34246.0,0.24657544]
[1625466848790,2.81002961,34247.0,34246.0,0.24657544]
[1625466849340,4.32105917,34247.0,34246.0,0.24657544]
[1625466850294,7.89625917,34247.0,34246.0,0.24657544]
[1625466850744,6.38522961,34247.0,34246.0,0.24657544]
[1625466851147,6.32622961,34247.0,34246.0,0.24657544]
[1625466851400,2.74502961,34247.0,34246.0,0.24657544]
[1625466851599,2.80402961,34247.0,34246.0,0.24657544]
[1625466853049,6.54622961,34247.0,34246.0,0.24657544]
[1625466853300,6.54022961,34247.0,34246.0,0.24057544]
[1625466853750,6.55462779,34247.0,34246.0,0.24057544]
[1625466853851,8.06548172,34247.0,34246.0,0.24057544]
[1625466854003,8.05108354,34247.0,34246.0,0.24057544]
[1625466854602,8.06548191,34247.0,34246.0,0.24057544]
[1625466854704,8.12448191,34247.0,34246.0,0.24057544]
[1625466856456,4.38228191,34247.0,34246.0,0.24057544]
[1625466856657,4.26428191,34247.0,34246.0,0.24057544]
[1625466857310,2.75342798,34247.0,34246.0,0.24057544]
[1625466859664,2.51285254,34247.0,34246.0,0.48115088]
[1625466860016,1.1899819,34247.0,34246.0,0.48115088]
[1625466860565,1.02241443,34247.0,34246.0,0.48115088]
[1625466861317,1.00801606,34247.0,34246.0,0.48115088]
[1625466861417,1.00792731,34248.0,34246.0,0.48115088]
[1625466862118,0.01439681,34247.0,34246.0,0.48115088]
[1625466862268,1.02205491,34247.0,34246.0,0.48115088]
[1625466862369,1.0076581,34247.0,34246.0,0.54015088]
[1625466862477,1.0076581,34247.0,34246.0,0.59915088]
[1625466862668,1.0076581,34247.0,34246.0,0.6035832]
[1625466862769,1.0076581,34247.0,34246.0,5.0749832]
[1625466862869,0.24057544,34250.0,34246.0,5.0749832]
[1625466862870,0.16819149,34248.0,34246.0,5.0749832]
[1625466863172,0.16819149,34248.0,34247.0,0.00443218]
[1625466863272,0.16819149,34248.0,34247.0,0.36048218]
[1625466863371,0.16819149,34248.0,34247.0,0.41948218]
[1625466863671,0.16819149,34248.0,34247.0,0.66005762]
[1625466863823,0.2929,34252.0,34247.0,0.66005762]
[1625466863824,0.16823896,34249.0,34247.0,0.66005762]
[1625466864124,0.16818666,34250.0,34247.0,0.66005762]
[1625466864430,0.16818666,34250.0,34248.0,0.00443205]
[1625466864525,0.16818666,34250.0,34248.0,0.06343205]
[1625466864625,0.16818666,34250.0,34248.0,0.12243205]
[1625466864724,0.16818666,34250.0,34249.0,0.17196006]
[1625466864825,0.16818666,34250.0,34249.0,0.28996006]
[1625466865978,0.16818666,34250.0,34249.0,0.38996006]
[1625466866175,0.13758666,34250.0,34249.0,0.38996006]
[1625466866276,1.01208628,34253.0,34249.0,0.38996006]
[1625466866576,1.01208628,34253.0,34249.0,0.28996006]
[1625466866827,0.004,34253.0,34249.0,0.118]
[1625466867177,0.004,34253.0,34252.0,0.1]
[1625466867277,0.004,34253.0,34252.0,0.159]
[1625466867727,0.004,34253.0,34252.0,0.39957544]
[1625466869880,0.004,34253.0,34252.0,0.45857544]
[1625466871737,0.004,34253.0,34252.0,0.69915088]
[1625466875899,0.004,34253.0,34252.0,0.64015088]
[1625466876518,1.0069413,34253.0,34252.0,0.64015088]
[1625466876748,1.0069413,34253.0,34252.0,0.69915088]
[1625466876950,0.004,34253.0,34252.0,0.69915088]
[1625466877099,4.1097,34253.0,34252.0,0.69915088]
[1625466877299,4.1057,34253.0,34252.0,0.69915088]
[1625466877399,1.00342204,34254.0,34252.0,0.69915088]
[1625466877851,1.00331805,34255.0,34252.0,0.59915088]
[1625466878451,1.00331805,34255.0,34254.0,0.1]
[1625466878552,1.00331805,34255.0,34254.0,0.218]
[1625466880105,1.00331805,34255.0,34254.0,0.159]
[1625466882312,1.09131805,34255.0,34254.0,0.159]
[1625466882410,2.17427026,34255.0,34254.0,0.159]
[1625466882510,2.18862463,34255.0,34254.0,0.159]
[1625466884215,3.52636285,34255.0,34254.0,0.159]
[1625466887921,3.74987285,34255.0,34254.0,0.159]
[1625466888522,4.4200274,34255.0,34254.0,0.159]
[1625466894293,4.1965174,34255.0,34254.0,0.159]
[1625466894995,4.1965174,34255.0,34254.0,0.218]
[1625466895295,2.85877918,34255.0,34254.0,0.22244511]
[1625466895745,2.85877918,34255.0,34254.0,5.14014511]
[1625466895945,0.68450892,34255.0,34254.0,7.10354061]
[1625466896095,0.68450892,34255.0,34254.0,2.18584061]
[1625466896346,0.01435437,34255.0,34254.0,2.18584061]
[1625466898754,0.66765412,34257.0,34254.0,2.18584061]
[1625466899006,0.01435138,34256.0,34255.0,0.69324141]
[1625466899104,0.01435138,34256.0,34255.0,0.75224141]
[1625466899204,0.01435138,34256.0,34255.0,0.81124141]
[1625466899305,0.66765412,34257.0,34255.0,0.81124141]
[1625466899405,0.66765412,34257.0,34255.0,1.84442986]
[1625466899606,0.66765412,34257.0,34256.0,0.00444468]
[1625466899706,0.66765412,34257.0,34256.0,0.06344468]
[1625466899807,0.66765412,34257.0,34256.0,0.81116215]
[1625466899906,0.68200512,34257.0,34256.0,0.81116215]
[1625466900009,0.68200512,34257.0,34256.0,1.05173759]
[1625466900105,0.66765412,34257.0,34256.0,1.05173759]
[1625466900308,0.66770748,34258.0,34256.0,1.15173759]
[1625466900408,0.014351,34257.0,34256.0,1.15173759]
[1625466900657,0.66770748,34258.0,34256.0,1.05173759]
[1625466900958,0.014351,34257.0,34256.0,1.04729291]
[1625466901260,0.014351,34257.0,34256.0,1.05173756]
[1625466901261,0.68217319,34257.0,34256.0,1.05173756]
[1625466901360,0.68217319,34257.0,34256.0,1.15173756]
[1625466901712,1.6834187,34257.0,34256.0,0.40402009]
[1625466901810,1.6834187,34257.0,34256.0,0.39957544]
[1625466901909,1.6834187,34257.0,34256.0,0.45857544]
[1625466902009,1.6834187,34257.0,34256.0,0.39957544]
[1625466902211,2.85098606,34257.0,34256.0,0.39957544]
[1625466903111,2.90998606,34257.0,34256.0,0.159]
[1625466903210,7.21208606,34257.0,34256.0,0.159]
[1625466903325,8.54864687,34257.0,34256.0,0.159]
[1625466903815,10.11041633,34257.0,34256.0,0.1]
[1625466903915,10.05141633,34257.0,34256.0,0.1]
[1625466904013,10.53256721,34257.0,34256.0,0.07]
[1625466904119,10.62618017,34257.0,34256.0,0.07]
[1625466904214,10.62618017,34257.0,34252.0,0.24257544]
[1625466904665,0.04896755,34256.0,34252.0,0.24257544]
[1625466904766,0.16696755,34256.0,34252.0,0.24257544]
[1625466904967,5.66931844,34253.0,34252.0,0.24257544]
[1625466905065,6.10280844,34253.0,34252.0,0.24257544]
[1625466905472,6.11716265,34253.0,34252.0,0.24257544]
[1625466905965,6.35773809,34253.0,34252.0,0.24257544]
[1625466907321,6.35573809,34253.0,34252.0,0.24457544]
[1625466910278,6.35373809,34253.0,34252.0,0.24057544]
[1625466913329,6.35173809,34253.0,34252.0,0.24057544]
[1625466913581,6.35173809,34253.0,34252.0,0.21717544]
[1625466919749,6.29273809,34253.0,34252.0,0.21717544]
[1625466919945,6.79448788,34253.0,34252.0,0.21717544]
[1625466920900,6.85348788,34253.0,34252.0,0.21717544]
[1625466921101,6.79448788,34253.0,34252.0,0.21717544]
[1625466928117,6.88128788,34253.0,34252.0,0.21717544]
[1625466928767,6.91589987,34253.0,34252.0,0.21717544]
[1625466929219,6.82909987,34253.0,34252.0,0.21717544]
[1625466930875,6.82909987,34253.0,34249.0,0.002]
[1625466931126,0.04896829,34252.0,34249.0,0.002]
[1625466931225,0.10796829,34252.0,34249.0,0.002]
[1625466931527,4.68582284,34250.0,34249.0,0.002]
[1625466931625,4.74482284,34250.0,34249.0,0.002]
[1625466931777,4.75917913,34250.0,34249.0,0.002]
[1625466932182,4.99975457,34250.0,34249.0,0.002]
[1625466932830,4.99975457,34250.0,34249.0,0.00644463]
[1625466933378,4.99975457,34250.0,34249.0,0.002]
[1625466934787,5.08635457,34250.0,34249.0,0.002]
[1625466935035,6.62734318,34250.0,34249.0,0.002]
[1625466935838,6.59272954,34250.0,34249.0,0.002]
[1625466937292,6.59272954,34250.0,34246.0,0.002]
[1625466937386,6.59272954,34250.0,34246.0,0.061]
[1625466937587,4.70080124,34247.0,34246.0,0.061]
[1625466937687,9.94970124,34247.0,34246.0,0.061]
[1625466937888,9.96405775,34247.0,34246.0,0.06544479]
[1625466938190,10.20463319,34247.0,34246.0,0.06544479]
[1625466938943,10.20463319,34247.0,34246.0,0.00644479]
[1625466940897,5.01473319,34247.0,34246.0,0.00644479]
[1625466943403,5.01473319,34247.0,34246.0,0.002]
[1625466944356,6.52471346,34247.0,34246.0,0.002]
[1625466945457,6.58371346,34247.0,34246.0,0.002]
[1625466945708,6.6183283,34247.0,34246.0,0.002]
[1625466946009,6.58371346,34247.0,34246.0,0.002]
[1625466946262,6.61832865,34247.0,34245.0,0.24057544]
[1625466946560,6.21614588,34246.0,34245.0,0.24057544]
[1625466946662,6.54858588,34246.0,34243.0,0.002]
[1625466946861,6.58320185,34246.0,34243.0,0.002]
[1625466947011,4.69129629,34244.0,34243.0,0.002]
[1625466947112,4.75029629,34244.0,34243.0,0.002]
[1625466947312,4.76465458,34244.0,34243.0,0.002]
[1625466947614,4.76465458,34244.0,34242.0,0.20227544]
[1625466947862,0.01435831,34243.0,34242.0,0.20227544]
[1625466948065,4.76368268,34243.0,34242.0,0.20227544]
[1625466948264,5.30383356,34243.0,34241.0,0.004]
[1625466948566,6.80973259,34243.0,34241.0,0.004]
[1625466948767,0.01435862,34242.0,34241.0,0.004]
[1625466948866,0.07335862,34242.0,34241.0,0.004]
[1625466948970,4.75841751,34242.0,34241.0,0.004]
[1625466949226,4.69941751,34242.0,34241.0,0.00844548]
[1625466949319,4.69741751,34242.0,34241.0,0.00844548]
[1625466949673,3.35890095,34242.0,34241.0,0.00844548]
[1625466949773,3.35890095,34242.0,34241.0,0.06744548]
[1625466950325,2.18767805,34242.0,34241.0,2.78932589]
[1625466952226,1.18374881,34242.0,34241.0,2.78932589]
[1625466952327,1.18174881,34242.0,34241.0,2.78932589]
[1625466952629,1.18174881,34242.0,34241.0,2.78488041]
[1625466952731,1.18174881,34242.0,34241.0,2.78932762]
[1625466954180,2.19052808,34242.0,34241.0,2.78932762]
[1625466955283,2.18852808,34242.0,34241.0,2.78532762]
[1625466955977,1.61672808,34242.0,34241.0,3.18321762]
[1625466956093,0.74662808,34242.0,34241.0,3.18321762]
[1625466956179,0.07302808,34242.0,34241.0,3.18321762]
[1625466956233,1.17335832,34244.0,34241.0,3.70214768]
[1625466956234,0.8528864,34244.0,34241.0,3.70214768]
[1625466956348,0.16324339,34246.0,34241.0,3.70214768]
[1625466956432,1.51221068,34249.0,34241.0,3.70214768]
[1625466956433,1.43582173,34249.0,34241.0,3.64314768]
[1625466956532,1.16852173,34249.0,34245.0,4.536]
[1625466956633,0.95415173,34249.0,34245.0,4.536]
[1625466956748,0.86575173,34249.0,34246.0,0.5]
[1625466956832,0.71825173,34249.0,34246.0,0.51310533]
[1625466956933,0.008,34255.0,34246.0,0.51310533]
[1625466956934,0.0037,34253.0,34246.0,0.51310533]
[1625466957034,0.20469604,34255.0,34248.0,0.1]
[1625466957163,0.16179604,34255.0,34249.0,0.059]
[1625466957234,0.50675964,34256.0,34255.0,0.04410396]
[1625466957335,0.97401005,34258.0,34255.0,0.22925]
[1625466957435,0.88251005,34258.0,34255.0,0.22925]